[Event "Titled Tuesday Blitz March 21 Late 2023"]
[White "Bhavikatti, Neil"]
[Black "Papayan, Oleg"]
[WhiteFideId "30935024"]
[BlackFideId "4193911"]
[WhiteElo "2354"]
[BlackElo "2153"]
[Result "0-1"]
[Round "11"]
[TimeControl "180+2"]
[Date "2023.03.21"]
[WhiteClock "0:00:20"]
[BlackClock "0:01:07"]

1. d4 {[%clk 0:03:00]}  Nf6 {[%clk 0:02:56]} 2. c4 {[%clk 0:03:01]}  e6 {[%clk 0:02:56]} 3. Nc3 {[%clk 0:03:01]}  Bb4 {[%clk 0:02:57]} 4. Qc2 {[%clk 0:03:02]}  O-O {[%clk 0:02:56]} 5. a3 {[%clk 0:03:02]}  Bxc3+ {[%clk 0:02:55]} 6. Qxc3 {[%clk 0:03:03]}  d5 {[%clk 0:02:55]} 7. Bg5 {[%clk 0:03:02]}  dxc4 {[%clk 0:02:55]} 8. e3 {[%clk 0:03:02]}  b5 {[%clk 0:02:53]} 9. Be2 {[%clk 0:02:53]}  Bb7 {[%clk 0:02:48]} 10. Bf3 {[%clk 0:02:53]}  Bxf3 {[%clk 0:02:41]} 11. Nxf3 {[%clk 0:02:54]}  c6 {[%clk 0:02:32]} 12. O-O {[%clk 0:02:52]}  Ne4 {[%clk 0:02:30]} 13. Bxd8 {[%clk 0:02:51]}  Nxc3 {[%clk 0:02:30]} 14. Be7 {[%clk 0:02:50]}  Re8 {[%clk 0:02:28]} 15. Bb4 {[%clk 0:02:43]}  Nd5 {[%clk 0:02:27]} 16. Ne5 {[%clk 0:02:41]}  f6 {[%clk 0:02:22]} 17. Nf3 {[%clk 0:02:40]}  a5 {[%clk 0:02:19]} 18. Bd6 {[%clk 0:02:38]}  Rd8 {[%clk 0:02:02]} 19. Bg3 {[%clk 0:02:37]}  Nd7 {[%clk 0:01:58]} 20. e4 {[%clk 0:02:36]}  N5b6 {[%clk 0:01:59]} 21. Rfd1 {[%clk 0:02:25]}  Na4 {[%clk 0:01:58]} 22. Rd2 {[%clk 0:02:24]}  Ndb6 {[%clk 0:01:52]} 23. Re1 {[%clk 0:01:45]}  Rd7 {[%clk 0:01:45]} 24. Rc1 {[%clk 0:01:10]}  Rad8 {[%clk 0:01:21]} 25. Bf4 {[%clk 0:01:04]}  c5 {[%clk 0:01:10]} 26. dxc5 {[%clk 0:00:36]}  Nxc5 {[%clk 0:01:11]} 27. Rxd7 {[%clk 0:00:22]}  Rxd7 {[%clk 0:01:12]} 28. e5 {[%clk 0:00:20]}  Nd3 {[%clk 0:01:07]} 0-1


[Site "https://www.chess.com"]

[Event "Titled Tuesday Blitz March 21 Late 2023"]
[White "Romkachess"]
[Black "Vifleemskaia, Svetlana"]
[BlackFideId "4129490"]
[WhiteElo "2489"]
[BlackElo "1930"]
[Result "0-1"]
[Round "11"]
[TimeControl "180+2"]
[Date "2023.03.21"]
[WhiteClock "0:00:11"]
[BlackClock "0:00:07"]

1. e4 {[%clk 0:02:57]}  e5 {[%clk 0:02:59]} 2. d4 {[%clk 0:02:55]}  exd4 {[%clk 0:02:58]} 3. Qxd4 {[%clk 0:02:52]}  Nc6 {[%clk 0:02:58]} 4. Qe3 {[%clk 0:02:52]}  Nf6 {[%clk 0:02:58]} 5. Nc3 {[%clk 0:02:52]}  Bb4 {[%clk 0:02:58]} 6. Bd2 {[%clk 0:02:52]}  O-O {[%clk 0:02:58]} 7. O-O-O {[%clk 0:02:52]}  Re8 {[%clk 0:02:59]} 8. Qg3 {[%clk 0:02:51]}  d6 {[%clk 0:02:57]} 9. f3 {[%clk 0:02:51]}  Be6 {[%clk 0:02:40]} 10. a3 {[%clk 0:02:47]}  Bc5 {[%clk 0:02:37]} 11. h4 {[%clk 0:02:46]}  d5 {[%clk 0:02:19]} 12. Bg5 {[%clk 0:02:41]}  d4 {[%clk 0:02:12]} 13. Nce2 {[%clk 0:02:26]}  Bd6 {[%clk 0:02:07]} 14. Qf2 {[%clk 0:02:21]}  h6 {[%clk 0:02:03]} 15. Bf4 {[%clk 0:02:15]}  Bc5 {[%clk 0:01:26]} 16. Qe1 {[%clk 0:01:35]}  b5 {[%clk 0:01:16]} 17. g4 {[%clk 0:01:28]}  Nd7 {[%clk 0:01:06]} 18. Ng3 {[%clk 0:01:18]}  b4 {[%clk 0:01:01]} 19. a4 {[%clk 0:01:12]}  b3 {[%clk 0:00:57]} 20. c3 {[%clk 0:01:12]}  dxc3 {[%clk 0:00:54]} 21. Qxc3 {[%clk 0:01:13]}  Nb4 {[%clk 0:00:37]} 22. Kb1 {[%clk 0:01:04]}  Na2 {[%clk 0:00:30]} 23. Qe1 {[%clk 0:00:50]}  Qe7 {[%clk 0:00:22]} 24. Bb5 {[%clk 0:00:47]}  Bb4 {[%clk 0:00:15]} 25. Qe2 {[%clk 0:00:40]}  c6 {[%clk 0:00:12]} 26. Bc4 {[%clk 0:00:35]}  Qc5 {[%clk 0:00:07]} 27. Bxe6 {[%clk 0:00:30]}  Rxe6 {[%clk 0:00:08]} 28. Nh3 {[%clk 0:00:20]}  Nb6 {[%clk 0:00:07]} 29. Be3 {[%clk 0:00:16]}  Qa5 {[%clk 0:00:07]} 30. Bd4 {[%clk 0:00:04]}  Qxa4 {[%clk 0:00:06]} 31. Nf5 {[%clk 0:00:02]}  Bf8 {[%clk 0:00:05]} 32. g5 {[%clk 0:00:02]}  Nb4 {[%clk 0:00:04]} 33. Kc1 {[%clk 0:00:02]}  Rd8 {[%clk 0:00:02]} 34. Kd2 {[%clk 0:00:02]}  Qa2 {[%clk 0:00:02]} 35. Ke3 {[%clk 0:00:02]}  Nc2+ {[%clk 0:00:02]} 36. Kf4 {[%clk 0:00:02]}  Nxd4 {[%clk 0:00:03]} 37. Nxd4 {[%clk 0:00:02]}  Red6 {[%clk 0:00:03]} 38. Qe3 {[%clk 0:00:01]}  Qa4 {[%clk 0:00:04]} 39. Nf5 {[%clk 0:00:02]}  Rxd1 {[%clk 0:00:03]} 40. Rxd1 {[%clk 0:00:01]}  Rxd1 {[%clk 0:00:04]} 41. gxh6 {[%clk 0:00:02]}  gxh6 {[%clk 0:00:04]} 42. Qc3 {[%clk 0:00:02]}  Qc4 {[%clk 0:00:02]} 43. Qf6 {[%clk 0:00:02]}  Qe6 {[%clk 0:00:02]} 44. Qxh6 {[%clk 0:00:01]}  Bxh6+ {[%clk 0:00:01]} 45. Nxh6+ {[%clk 0:00:02]}  Qxh6+ {[%clk 0:00:02]} 46. Kg4 {[%clk 0:00:03]}  Qg6+ {[%clk 0:00:03]} 47. Ng5 {[%clk 0:00:03]}  Rg1+ {[%clk 0:00:03]} 48. Kf4 {[%clk 0:00:04]}  Rxg5 {[%clk 0:00:04]} 49. hxg5 {[%clk 0:00:05]}  Nd7 {[%clk 0:00:04]} 50. e5 {[%clk 0:00:06]}  Nf8 {[%clk 0:00:05]} 51. Kg4 {[%clk 0:00:06]}  Ne6 {[%clk 0:00:06]} 52. f4 {[%clk 0:00:07]}  Nxf4 {[%clk 0:00:06]} 53. Kxf4 {[%clk 0:00:08]}  Qc2 {[%clk 0:00:06]} 54. e6 {[%clk 0:00:08]}  Qxb2 {[%clk 0:00:07]} 55. e7 {[%clk 0:00:09]}  Qe2 {[%clk 0:00:07]} 56. e8=Q+ {[%clk 0:00:10]}  Qxe8 {[%clk 0:00:07]} 57. Kf5 {[%clk 0:00:11]}  b2 {[%clk 0:00:07]} 0-1


[Site "https://www.chess.com"]

[Event "Titled Tuesday Blitz March 21 Late 2023"]
[White "Lauridsen, Jesper Morch"]
[Black "Cyfka, Karina"]
[WhiteFideId "1401890"]
[BlackFideId "1122681"]
[WhiteElo "2276"]
[BlackElo "2241"]
[Result "1/2-1/2"]
[Round "11"]
[TimeControl "180+2"]
[Date "2023.03.21"]
[WhiteClock "0:00:54"]
[BlackClock "0:01:11"]

1. e4 {[%clk 0:03:00]}  d5 {[%clk 0:02:58]} 2. exd5 {[%clk 0:03:00]}  Qxd5 {[%clk 0:02:58]} 3. Nf3 {[%clk 0:03:00]}  Nf6 {[%clk 0:02:52]} 4. d4 {[%clk 0:03:00]}  g6 {[%clk 0:02:49]} 5. c4 {[%clk 0:02:59]}  Qd8 {[%clk 0:02:43]} 6. Nc3 {[%clk 0:02:58]}  Bg7 {[%clk 0:02:43]} 7. Be2 {[%clk 0:02:55]}  O-O {[%clk 0:02:43]} 8. O-O {[%clk 0:02:55]}  c5 {[%clk 0:02:38]} 9. dxc5 {[%clk 0:02:52]}  Na6 {[%clk 0:02:39]} 10. Be3 {[%clk 0:02:50]}  Ng4 {[%clk 0:02:39]} 11. Bd4 {[%clk 0:02:49]}  e5 {[%clk 0:02:32]} 12. Be3 {[%clk 0:02:49]}  Nxe3 {[%clk 0:02:30]} 13. fxe3 {[%clk 0:02:38]}  Nxc5 {[%clk 0:02:30]} 14. Qxd8 {[%clk 0:02:32]}  Rxd8 {[%clk 0:02:30]} 15. Nd5 {[%clk 0:02:31]}  h6 {[%clk 0:02:23]} 16. Rad1 {[%clk 0:02:14]}  Bd7 {[%clk 0:02:05]} 17. b4 {[%clk 0:01:57]}  Ne4 {[%clk 0:01:58]} 18. Ne7+ {[%clk 0:01:50]}  Kh7 {[%clk 0:01:48]} 19. Bd3 {[%clk 0:01:44]}  Nc3 {[%clk 0:01:37]} 20. Nxe5 {[%clk 0:01:23]}  Nxd1 {[%clk 0:01:30]} 21. Rxf7 {[%clk 0:01:20]}  Rf8 {[%clk 0:01:12]} 22. N5xg6 {[%clk 0:00:54]}  Rxf7 {[%clk 0:01:11]} 23. Nf8+ {[%clk 0:00:53]}  Kh8 {[%clk 0:01:10]} 24. Nfg6+ {[%clk 0:00:53]}  Kh7 {[%clk 0:01:10]} 25. Nf8+ {[%clk 0:00:53]}  Kh8 {[%clk 0:01:11]} 26. Nfg6+ {[%clk 0:00:54]}  Kh7 {[%clk 0:01:11]} 1/2-1/2


[Site "https://www.chess.com"]

[Event "Titled Tuesday Blitz March 21 Late 2023"]
[White "Kovalevsky, Stanislav"]
[Black "Roman, Rodrigo"]
[WhiteFideId "13508598"]
[BlackFideId "3701220"]
[WhiteElo "2174"]
[BlackElo "1995"]
[Result "1-0"]
[Round "11"]
[TimeControl "180+2"]
[Date "2023.03.21"]
[WhiteClock "0:01:44"]
[BlackClock "0:00:40"]

1. c4 {[%clk 0:02:59]}  e5 {[%clk 0:02:57]} 2. Nc3 {[%clk 0:02:59]}  Nf6 {[%clk 0:02:56]} 3. g3 {[%clk 0:03:00]}  Bb4 {[%clk 0:02:52]} 4. Bg2 {[%clk 0:02:59]}  Nc6 {[%clk 0:02:47]} 5. e4 {[%clk 0:02:59]}  Bxc3 {[%clk 0:02:46]} 6. dxc3 {[%clk 0:02:59]}  d6 {[%clk 0:02:45]} 7. Qe2 {[%clk 0:03:00]}  Be6 {[%clk 0:02:40]} 8. Nf3 {[%clk 0:03:00]}  O-O {[%clk 0:02:34]} 9. Nd2 {[%clk 0:02:58]}  a5 {[%clk 0:02:33]} 10. Nf1 {[%clk 0:02:57]}  a4 {[%clk 0:02:32]} 11. Ne3 {[%clk 0:02:57]}  Nd7 {[%clk 0:02:27]} 12. O-O {[%clk 0:02:54]}  Nc5 {[%clk 0:02:27]} 13. Rb1 {[%clk 0:02:52]}  Na5 {[%clk 0:02:02]} 14. f4 {[%clk 0:02:35]}  f6 {[%clk 0:01:59]} 15. fxe5 {[%clk 0:02:25]}  fxe5 {[%clk 0:01:57]} 16. Rxf8+ {[%clk 0:02:25]}  Qxf8 {[%clk 0:01:54]} 17. Bd2 {[%clk 0:02:23]}  Kh8 {[%clk 0:01:51]} 18. Rf1 {[%clk 0:02:21]}  Qg8 {[%clk 0:01:51]} 19. Nd5 {[%clk 0:02:08]}  c6 {[%clk 0:01:31]} 20. Nc7 {[%clk 0:02:04]}  Rc8 {[%clk 0:01:26]} 21. Nxe6 {[%clk 0:02:03]}  Qxe6 {[%clk 0:01:27]} 22. Qh5 {[%clk 0:01:56]}  Qxc4 {[%clk 0:01:09]} 23. Bh3 {[%clk 0:01:51]}  Rd8 {[%clk 0:01:01]} 24. Rf7 {[%clk 0:01:47]}  Qxe4 {[%clk 0:00:49]} 25. Bf5 {[%clk 0:01:44]}  g6 {[%clk 0:00:40]} 26. Qxh7# {[%clk 0:01:44]} 1-0


[Site "https://www.chess.com"]

[Event "Titled Tuesday Blitz March 21 Late 2023"]
[White "Rottenwohrer Suarez, Juan"]
[Black "Fajdetic, Hrvoje"]
[WhiteFideId "32068182"]
[BlackFideId "14501945"]
[WhiteElo "2174"]
[BlackElo "2185"]
[Result "1-0"]
[Round "11"]
[TimeControl "180+2"]
[Date "2023.03.21"]
[WhiteClock "0:00:13"]
[BlackClock "0:00:05"]

1. e4 {[%clk 0:02:54]}  c5 {[%clk 0:02:55]} 2. Nf3 {[%clk 0:02:54]}  a6 {[%clk 0:02:55]} 3. c4 {[%clk 0:02:52]}  Nc6 {[%clk 0:02:52]} 4. Nc3 {[%clk 0:02:52]}  g6 {[%clk 0:02:52]} 5. d4 {[%clk 0:02:51]}  cxd4 {[%clk 0:02:53]} 6. Nxd4 {[%clk 0:02:51]}  Bg7 {[%clk 0:02:54]} 7. Be3 {[%clk 0:02:51]}  d6 {[%clk 0:02:47]} 8. Be2 {[%clk 0:02:51]}  Nf6 {[%clk 0:02:47]} 9. O-O {[%clk 0:02:51]}  O-O {[%clk 0:02:47]} 10. h3 {[%clk 0:02:49]}  Nxd4 {[%clk 0:02:44]} 11. Bxd4 {[%clk 0:02:49]}  Be6 {[%clk 0:02:44]} 12. Rc1 {[%clk 0:02:37]}  Nd7 {[%clk 0:02:43]} 13. Be3 {[%clk 0:02:35]}  Rc8 {[%clk 0:02:42]} 14. b3 {[%clk 0:02:35]}  Qa5 {[%clk 0:02:40]} 15. Qd2 {[%clk 0:02:29]}  b5 {[%clk 0:02:40]} 16. Nd5 {[%clk 0:02:24]}  Qd8 {[%clk 0:02:37]} 17. cxb5 {[%clk 0:02:22]}  Rxc1 {[%clk 0:02:36]} 18. Rxc1 {[%clk 0:02:21]}  Bxd5 {[%clk 0:02:35]} 19. exd5 {[%clk 0:02:11]}  axb5 {[%clk 0:02:36]} 20. Bxb5 {[%clk 0:02:11]}  Nc5 {[%clk 0:02:03]} 21. b4 {[%clk 0:02:03]}  Ne4 {[%clk 0:01:58]} 22. Qd3 {[%clk 0:01:54]}  f5 {[%clk 0:01:58]} 23. Bd4 {[%clk 0:01:49]}  Bxd4 {[%clk 0:01:55]} 24. Qxd4 {[%clk 0:01:49]}  Qb8 {[%clk 0:01:48]} 25. a4 {[%clk 0:01:47]}  Rc8 {[%clk 0:01:46]} 26. Re1 {[%clk 0:01:40]}  Rc2 {[%clk 0:01:39]} 27. Bd7 {[%clk 0:01:08]}  h6 {[%clk 0:00:24]} 28. f3 {[%clk 0:01:07]}  Rd2 {[%clk 0:00:23]} 29. Qe3 {[%clk 0:01:07]}  Qxb4 {[%clk 0:00:16]} 30. Be6+ {[%clk 0:00:58]}  Kg7 {[%clk 0:00:14]} 31. fxe4 {[%clk 0:00:58]}  Qb2 {[%clk 0:00:13]} 32. Qg3 {[%clk 0:00:44]}  f4 {[%clk 0:00:11]} 33. Qxf4 {[%clk 0:00:35]}  Rxg2+ {[%clk 0:00:10]} 34. Kh1 {[%clk 0:00:35]}  Rf2 {[%clk 0:00:10]} 35. Qg3 {[%clk 0:00:31]}  h5 {[%clk 0:00:09]} 36. Rg1 {[%clk 0:00:31]}  Qf6 {[%clk 0:00:08]} 37. Bf5 {[%clk 0:00:29]}  h4 {[%clk 0:00:05]} 38. Qxg6+ {[%clk 0:00:28]}  Qxg6 {[%clk 0:00:06]} 39. Rxg6+ {[%clk 0:00:29]}  Kf7 {[%clk 0:00:06]} 40. Rh6 {[%clk 0:00:28]}  Ra2 {[%clk 0:00:06]} 41. Rxh4 {[%clk 0:00:18]}  Rxa4 {[%clk 0:00:06]} 42. Rh6 {[%clk 0:00:15]}  Ra2 {[%clk 0:00:05]} 43. h4 {[%clk 0:00:14]}  Rf2 {[%clk 0:00:05]} 44. h5 {[%clk 0:00:14]}  Rd2 {[%clk 0:00:05]} 45. Rg6 {[%clk 0:00:13]} 1-0


[Site "https://www.chess.com"]

[Event "Titled Tuesday Blitz March 21 Late 2023"]
[White "Battlecruiser_Operational"]
[Black "Rios Escobar, Adan"]
[BlackFideId "3403645"]
[WhiteElo "2265"]
[BlackElo "2400"]
[Result "0-1"]
[Round "11"]
[TimeControl "180+2"]
[Date "2023.03.21"]
[WhiteClock "0:00:03"]
[BlackClock "0:00:09"]

1. d4 {[%clk 0:02:53]}  Nf6 {[%clk 0:02:59]} 2. Nf3 {[%clk 0:02:52]}  g6 {[%clk 0:03:00]} 3. g3 {[%clk 0:02:52]}  c5 {[%clk 0:02:59]} 4. dxc5 {[%clk 0:02:49]}  Qa5+ {[%clk 0:02:54]} 5. Nbd2 {[%clk 0:02:47]}  Qxc5 {[%clk 0:02:54]} 6. Bg2 {[%clk 0:02:47]}  d6 {[%clk 0:02:49]} 7. O-O {[%clk 0:02:46]}  Bg7 {[%clk 0:02:50]} 8. a3 {[%clk 0:02:46]}  Qh5 {[%clk 0:02:45]} 9. Re1 {[%clk 0:02:40]}  Bh3 {[%clk 0:02:44]} 10. Bh1 {[%clk 0:02:40]}  Nc6 {[%clk 0:02:44]} 11. c4 {[%clk 0:02:37]}  Ng4 {[%clk 0:02:36]} 12. Ra2 {[%clk 0:02:08]}  Nce5 {[%clk 0:02:21]} 13. Nxe5 {[%clk 0:02:02]}  dxe5 {[%clk 0:02:19]} 14. Bxb7 {[%clk 0:01:51]}  O-O {[%clk 0:02:19]} 15. Nf3 {[%clk 0:01:46]}  Rab8 {[%clk 0:02:12]} 16. Be4 {[%clk 0:01:44]}  e6 {[%clk 0:02:05]} 17. Qd7 {[%clk 0:01:00]}  Nf6 {[%clk 0:02:03]} 18. Qd3 {[%clk 0:00:57]}  Rfd8 {[%clk 0:01:43]} 19. Qc2 {[%clk 0:00:56]}  Ng4 {[%clk 0:01:26]} 20. Ng5 {[%clk 0:00:44]}  f5 {[%clk 0:01:11]} 21. Bf3 {[%clk 0:00:24]}  e4 {[%clk 0:01:03]} 22. Bxg4 {[%clk 0:00:20]}  Bxg4 {[%clk 0:01:00]} 23. Nxe6 {[%clk 0:00:20]}  Be5 {[%clk 0:00:17]} 24. Nxd8 {[%clk 0:00:17]}  Rxd8 {[%clk 0:00:18]} 25. Be3 {[%clk 0:00:15]}  Qh3 {[%clk 0:00:17]} 26. Rd1 {[%clk 0:00:12]}  Re8 {[%clk 0:00:16]} 27. f4 {[%clk 0:00:05]}  exf3 {[%clk 0:00:15]} 28. exf3 {[%clk 0:00:05]}  Bxf3 {[%clk 0:00:16]} 29. Re1 {[%clk 0:00:05]}  Be4 {[%clk 0:00:16]} 30. Qf2 {[%clk 0:00:05]}  Rd8 {[%clk 0:00:13]} 31. b4 {[%clk 0:00:05]}  Rd3 {[%clk 0:00:12]} 32. Rd2 {[%clk 0:00:05]}  Rxa3 {[%clk 0:00:10]} 33. Rd8+ {[%clk 0:00:04]}  Kf7 {[%clk 0:00:10]} 34. Bxa7 {[%clk 0:00:03]}  Bxg3 {[%clk 0:00:09]} 35. Qxg3 {[%clk 0:00:03]}  Rxg3+ {[%clk 0:00:09]} 36. Kf2 {[%clk 0:00:03]}  Qg2# {[%clk 0:00:09]} 0-1


[Site "https://www.chess.com"]

[Event "Titled Tuesday Blitz March 21 Late 2023"]
[White "Rose, Felix"]
[Black "Guzman Moneo, Alberto"]
[WhiteFideId "5105722"]
[BlackFideId "2209616"]
[WhiteElo "2039"]
[BlackElo "2157"]
[Result "1-0"]
[Round "11"]
[TimeControl "180+2"]
[Date "2023.03.21"]
[WhiteClock "0:00:43"]
[BlackClock "0:00:07"]

1. e4 {[%clk 0:03:00]}  c5 {[%clk 0:02:59]} 2. Nf3 {[%clk 0:03:00]}  Nc6 {[%clk 0:02:59]} 3. d4 {[%clk 0:03:00]}  cxd4 {[%clk 0:03:00]} 4. Nxd4 {[%clk 0:03:01]}  g6 {[%clk 0:03:00]} 5. c4 {[%clk 0:03:02]}  Nf6 {[%clk 0:02:59]} 6. Nc3 {[%clk 0:03:01]}  d6 {[%clk 0:02:59]} 7. f3 {[%clk 0:03:02]}  Nxd4 {[%clk 0:02:58]} 8. Qxd4 {[%clk 0:03:02]}  Bg7 {[%clk 0:02:59]} 9. Be3 {[%clk 0:03:03]}  O-O {[%clk 0:02:59]} 10. Qd2 {[%clk 0:03:03]}  a5 {[%clk 0:02:59]} 11. Na4 {[%clk 0:03:02]}  Bd7 {[%clk 0:02:53]} 12. Nb6 {[%clk 0:03:02]}  Ra6 {[%clk 0:02:52]} 13. c5 {[%clk 0:02:53]}  Rxb6 {[%clk 0:02:27]} 14. cxb6 {[%clk 0:02:53]}  a4 {[%clk 0:02:25]} 15. Bc4 {[%clk 0:02:45]}  Bc6 {[%clk 0:02:22]} 16. O-O {[%clk 0:02:41]}  Nd7 {[%clk 0:02:22]} 17. Qb4 {[%clk 0:02:33]}  a3 {[%clk 0:02:03]} 18. Qxa3 {[%clk 0:02:33]}  Nxb6 {[%clk 0:02:03]} 19. Bb3 {[%clk 0:02:25]}  Nd7 {[%clk 0:01:59]} 20. Rad1 {[%clk 0:02:23]}  Qb8 {[%clk 0:01:54]} 21. Bd4 {[%clk 0:02:15]}  Ne5 {[%clk 0:01:54]} 22. f4 {[%clk 0:02:08]}  Ng4 {[%clk 0:01:54]} 23. Bxg7 {[%clk 0:02:06]}  Kxg7 {[%clk 0:01:54]} 24. Bd5 {[%clk 0:02:06]}  Qc7 {[%clk 0:01:48]} 25. Qc3+ {[%clk 0:02:04]}  Kg8 {[%clk 0:01:47]} 26. h3 {[%clk 0:01:54]}  Qb6+ {[%clk 0:01:45]} 27. Qd4 {[%clk 0:01:48]}  Qxd4+ {[%clk 0:01:45]} 28. Rxd4 {[%clk 0:01:49]}  Ne3 {[%clk 0:01:38]} 29. Rf2 {[%clk 0:01:39]}  e5 {[%clk 0:01:34]} 30. fxe5 {[%clk 0:01:37]}  dxe5 {[%clk 0:01:34]} 31. Rd3 {[%clk 0:01:36]}  Nxd5 {[%clk 0:01:25]} 32. exd5 {[%clk 0:01:35]}  Bd7 {[%clk 0:01:25]} 33. Rb3 {[%clk 0:01:31]}  b5 {[%clk 0:01:23]} 34. Rc3 {[%clk 0:01:30]}  Rd8 {[%clk 0:01:16]} 35. Re3 {[%clk 0:01:22]}  Re8 {[%clk 0:01:11]} 36. Rf6 {[%clk 0:01:21]}  Kg7 {[%clk 0:01:07]} 37. Rd6 {[%clk 0:01:21]}  Bf5 {[%clk 0:01:03]} 38. Rb6 {[%clk 0:01:17]}  Rc8 {[%clk 0:01:00]} 39. Rxb5 {[%clk 0:01:13]}  Rc1+ {[%clk 0:00:56]} 40. Kf2 {[%clk 0:01:10]}  e4 {[%clk 0:00:51]} 41. g4 {[%clk 0:01:07]}  Bd7 {[%clk 0:00:50]} 42. Rb7 {[%clk 0:01:04]}  Bc8 {[%clk 0:00:49]} 43. Rb8 {[%clk 0:01:01]}  Ba6 {[%clk 0:00:43]} 44. Rxe4 {[%clk 0:00:59]}  Rd1 {[%clk 0:00:41]} 45. Rb6 {[%clk 0:00:55]}  Bc8 {[%clk 0:00:37]} 46. d6 {[%clk 0:00:54]}  f5 {[%clk 0:00:34]} 47. Re8 {[%clk 0:00:52]}  Rc1 {[%clk 0:00:28]} 48. Re7+ {[%clk 0:00:41]}  Kf6 {[%clk 0:00:28]} 49. Rc7 {[%clk 0:00:41]}  Rxc7 {[%clk 0:00:25]} 50. dxc7+ {[%clk 0:00:42]}  Ke7 {[%clk 0:00:26]} 51. Rb8 {[%clk 0:00:41]}  Kd7 {[%clk 0:00:25]} 52. Rxc8 {[%clk 0:00:41]}  Kxc8 {[%clk 0:00:25]} 53. gxf5 {[%clk 0:00:42]}  gxf5 {[%clk 0:00:26]} 54. Kf3 {[%clk 0:00:43]}  Kxc7 {[%clk 0:00:27]} 55. Kf4 {[%clk 0:00:43]}  Kd6 {[%clk 0:00:28]} 56. Kxf5 {[%clk 0:00:44]}  Kd5 {[%clk 0:00:28]} 57. Kg5 {[%clk 0:00:45]}  Kd4 {[%clk 0:00:29]} 58. Kh6 {[%clk 0:00:45]}  Kd3 {[%clk 0:00:30]} 59. Kxh7 {[%clk 0:00:46]}  Kc2 {[%clk 0:00:31]} 60. h4 {[%clk 0:00:46]}  Kxb2 {[%clk 0:00:32]} 61. h5 {[%clk 0:00:47]}  Kxa2 {[%clk 0:00:33]} 62. Kg6 {[%clk 0:00:47]}  Kb3 {[%clk 0:00:34]} 63. h6 {[%clk 0:00:48]}  Kc4 {[%clk 0:00:34]} 64. h7 {[%clk 0:00:49]}  Kd5 {[%clk 0:00:35]} 65. h8=Q {[%clk 0:00:49]}  Ke6 {[%clk 0:00:36]} 66. Qf8 {[%clk 0:00:48]}  Ke5 {[%clk 0:00:36]} 67. Qf7 {[%clk 0:00:46]}  Ke4 {[%clk 0:00:18]} 68. Qf6 {[%clk 0:00:44]}  Kd3 {[%clk 0:00:18]} 69. Qf4 {[%clk 0:00:44]}  Ke2 {[%clk 0:00:18]} 70. Qg3 {[%clk 0:00:44]}  Kf1 {[%clk 0:00:17]} 71. Qh2 {[%clk 0:00:43]}  Ke1 {[%clk 0:00:17]} 72. Kf5 {[%clk 0:00:44]}  Kf1 {[%clk 0:00:17]} 73. Ke4 {[%clk 0:00:43]}  Ke1 {[%clk 0:00:07]} 74. Ke3 {[%clk 0:00:43]} 1-0


[Site "https://www.chess.com"]

[Event "Titled Tuesday Blitz March 21 Late 2023"]
[White "Beulen, Marcel"]
[Black "Jimenez Fernandez, Rebeca"]
[WhiteFideId "1001450"]
[BlackFideId "32070934"]
[WhiteElo "2378"]
[BlackElo "2008"]
[Result "1-0"]
[Round "11"]
[TimeControl "180+2"]
[Date "2023.03.21"]
[WhiteClock "0:00:23"]
[BlackClock "0:00:03"]

1. e4 {[%clk 0:03:00]}  c5 {[%clk 0:02:59]} 2. Nf3 {[%clk 0:03:00]}  Nc6 {[%clk 0:02:58]} 3. Bb5 {[%clk 0:03:00]}  g6 {[%clk 0:02:57]} 4. O-O {[%clk 0:02:58]}  Bg7 {[%clk 0:02:57]} 5. Re1 {[%clk 0:02:55]}  e5 {[%clk 0:02:56]} 6. Bxc6 {[%clk 0:02:55]}  dxc6 {[%clk 0:02:56]} 7. c3 {[%clk 0:02:55]}  Qe7 {[%clk 0:02:54]} 8. d3 {[%clk 0:02:45]}  Nf6 {[%clk 0:02:54]} 9. h3 {[%clk 0:02:43]}  Nd7 {[%clk 0:02:53]} 10. Be3 {[%clk 0:02:42]}  Nf8 {[%clk 0:02:51]} 11. d4 {[%clk 0:02:38]}  cxd4 {[%clk 0:02:49]} 12. cxd4 {[%clk 0:02:38]}  exd4 {[%clk 0:02:47]} 13. Bxd4 {[%clk 0:02:38]}  Ne6 {[%clk 0:02:33]} 14. Bxg7 {[%clk 0:02:35]}  Nxg7 {[%clk 0:02:34]} 15. Nc3 {[%clk 0:02:19]}  O-O {[%clk 0:02:33]} 16. Qd2 {[%clk 0:02:09]}  Be6 {[%clk 0:02:25]} 17. Rad1 {[%clk 0:02:07]}  Rad8 {[%clk 0:02:19]} 18. Qf4 {[%clk 0:01:52]}  Bc8 {[%clk 0:02:07]} 19. a3 {[%clk 0:01:46]}  Ne6 {[%clk 0:02:07]} 20. Qe5 {[%clk 0:01:44]}  f6 {[%clk 0:01:50]} 21. Qa5 {[%clk 0:01:38]}  b6 {[%clk 0:01:49]} 22. Qa4 {[%clk 0:01:38]}  Nc5 {[%clk 0:01:43]} 23. Qb4 {[%clk 0:01:35]}  Qf7 {[%clk 0:01:22]} 24. Nd4 {[%clk 0:01:20]}  Na6 {[%clk 0:00:50]} 25. Qb3 {[%clk 0:01:16]}  Qxb3 {[%clk 0:00:43]} 26. Nxb3 {[%clk 0:01:17]}  c5 {[%clk 0:00:39]} 27. Nd2 {[%clk 0:00:56]}  Be6 {[%clk 0:00:31]} 28. Nf3 {[%clk 0:00:55]}  Bb3 {[%clk 0:00:29]} 29. Rxd8 {[%clk 0:00:54]}  Rxd8 {[%clk 0:00:30]} 30. Re2 {[%clk 0:00:52]}  Nc7 {[%clk 0:00:27]} 31. Rd2 {[%clk 0:00:52]}  Rxd2 {[%clk 0:00:21]} 32. Nxd2 {[%clk 0:00:53]}  Be6 {[%clk 0:00:20]} 33. f4 {[%clk 0:00:51]}  Kf7 {[%clk 0:00:19]} 34. Kf2 {[%clk 0:00:52]}  Ne8 {[%clk 0:00:15]} 35. Ke3 {[%clk 0:00:52]}  Nd6 {[%clk 0:00:16]} 36. h4 {[%clk 0:00:51]}  Nc4+ {[%clk 0:00:16]} 37. Nxc4 {[%clk 0:00:51]}  Bxc4 {[%clk 0:00:17]} 38. g4 {[%clk 0:00:51]}  Ke6 {[%clk 0:00:17]} 39. g5 {[%clk 0:00:51]}  fxg5 {[%clk 0:00:15]} 40. hxg5 {[%clk 0:00:52]}  Kd6 {[%clk 0:00:14]} 41. Nd1 {[%clk 0:00:49]}  b5 {[%clk 0:00:13]} 42. Nf2 {[%clk 0:00:46]}  a5 {[%clk 0:00:13]} 43. Ng4 {[%clk 0:00:47]}  b4 {[%clk 0:00:12]} 44. Ne5 {[%clk 0:00:47]}  Be6 {[%clk 0:00:12]} 45. Nf3 {[%clk 0:00:39]}  Kc6 {[%clk 0:00:08]} 46. axb4 {[%clk 0:00:26]}  cxb4 {[%clk 0:00:08]} 47. Nd4+ {[%clk 0:00:22]}  Kd6 {[%clk 0:00:08]} 48. Nxe6 {[%clk 0:00:22]}  Kxe6 {[%clk 0:00:09]} 49. b3 {[%clk 0:00:22]}  Kd6 {[%clk 0:00:05]} 50. Kd4 {[%clk 0:00:23]}  Ke6 {[%clk 0:00:03]} 51. Kc4 {[%clk 0:00:23]}  Kf7 {[%clk 0:00:01]} 52. Kb5 {[%clk 0:00:22]}  Kg7 {[%clk 0:00:01]} 53. Kxa5 {[%clk 0:00:23]}  h6 {[%clk 0:00:02]} 54. gxh6+ {[%clk 0:00:22]}  Kxh6 {[%clk 0:00:03]} 55. Kxb4 {[%clk 0:00:23]}  g5 {[%clk 0:00:02]} 56. fxg5+ {[%clk 0:00:23]}  Kxg5 {[%clk 0:00:03]} 57. Kc5 {[%clk 0:00:23]}  Kf6 {[%clk 0:00:03]} 58. b4 {[%clk 0:00:23]} 1-0


[Site "https://www.chess.com"]